fUST/lending_fUST_20240714
["ID","MTS","AMOUNT","RATE_DAILY","PERIOD"]
[332043455,1720942242086,-500.0,0.00024931,2]
[332043458,1720942242097,-500.0,0.00024931,2]
[332043460,1720942242107,-682.55,0.00024931,2]
[332043462,1720942242117,-500.0,0.00024931,2]
[332043464,1720942242129,-500.0,0.00024931,2]
[332043466,1720942242141,-530.84601641,0.00024931,2]
[332043468,1720942242152,-522.09833939,0.00024931,2]
[332043471,1720942242163,-500.0,0.00024931,2]
[332043473,1720942242174,-500.0,0.00024931,2]
[332043475,1720942242184,-500.0,0.00024931,2]
[332043477,1720942242196,-500.0,0.00024931,2]
[332043479,1720942242206,-500.0,0.00024931,2]
[332043481,1720942242218,-500.0,0.00024931,2]
[332043483,1720942242228,-500.0,0.00024931,2]
[332043485,1720942242239,-504.80296555,0.00024931,2]
[332043487,1720942242250,-500.0,0.00024931,2]
[332043490,1720942242261,-475.35939545,0.00024931,2]
[332043492,1720942242272,-500.0,0.00024931,2]
[332043494,1720942242282,-500.0,0.00024931,2]
[332043496,1720942242295,-500.0,0.00024931,2]
[332043498,1720942242306,-500.0,0.00024931,2]
[332043500,1720942242317,-500.0,0.00024931,2]
[332043503,1720942242328,-500.0,0.00024931,2]
[332043505,1720942242338,-344.44860253,0.00024931,2]
[332043507,1720942242349,-500.0,0.00024931,2]
[332043509,1720942242359,-500.0,0.00024931,2]
[332043511,1720942242368,-500.0,0.00024931,2]
[332043513,1720942242379,-500.0,0.00024931,2]
[332043515,1720942242390,-500.0,0.00024931,2]
[332043517,1720942242402,-500.0,0.00024931,2]
[332043519,1720942242413,-500.0,0.00024931,2]
[332043521,1720942242424,-963.72,0.00024931,2]
[332043523,1720942242434,-500.0,0.00024931,2]
[332043525,1720942242446,-500.0,0.00024931,2]
[332043528,1720942242458,-500.0,0.00024931,2]
[332043530,1720942242468,-500.0,0.00024931,2]
[332043532,1720942242480,-500.0,0.00024931,2]
[332043534,1720942242489,-564.32447951,0.00024931,2]
[332043536,1720942242498,-500.0,0.00024931,2]
[332043538,1720942242507,-500.0,0.00024931,2]
[332043540,1720942242517,-500.0,0.00024931,2]
[332043542,1720942242526,-500.0,0.00024931,2]
[332043544,1720942242536,-500.0,0.00024931,2]
[332043546,1720942242545,-500.0,0.00024931,2]
[332043547,1720942242554,-500.0,0.00024931,2]
[332043549,1720942242565,-500.0,0.00024931,2]
[332043551,1720942242574,-500.0,0.00024931,2]
[332043553,1720942242583,-500.0,0.00024931,2]
[332043555,1720942242593,-500.0,0.00024931,2]
[332043557,1720942242603,-500.0,0.00024931,2]
[332043559,1720942242613,-500.0,0.00024931,2]
[332043561,1720942242622,-500.0,0.00024931,2]
[332043563,1720942242632,-500.0,0.00024931,2]
[332043565,1720942242642,-500.0,0.00024931,2]
[332043568,1720942242652,-500.0,0.00024931,2]
[332043569,1720942242662,-500.0,0.00024931,2]
[332043571,1720942242672,-620.85163948,0.00024931,2]
[332043573,1720942242682,-500.0,0.00024931,2]
[332043576,1720942242692,-645.24,0.00024931,2]
[332043578,1720942242701,-500.0,0.00024931,2]
[332043579,1720942242711,-500.0,0.00024931,2]
[332043581,1720942242721,-500.0,0.00024931,2]
[332043583,1720942242730,-500.0,0.00024931,2]
[332043585,1720942242741,-500.0,0.00024931,2]
[332043587,1720942242750,-500.0,0.00024931,2]
[332043589,1720942242760,-500.0,0.00024931,2]
[332043591,1720942242770,-500.0,0.00024931,2]
[332043593,1720942242780,-500.0,0.00024931,2]
[332043595,1720942242790,-500.0,0.00024931,2]
[332043597,1720942242800,-500.0,0.00024931,2]
[332043599,1720942242809,-500.0,0.00024931,2]
[332043601,1720942242819,-500.0,0.00024931,2]
[332043603,1720942242829,-500.0,0.00024931,2]
[332043605,1720942242839,-500.0,0.00024931,2]
[332043607,1720942242849,-500.0,0.00024931,2]
[332043609,1720942242859,-500.0,0.00024931,2]
[332043611,1720942242870,-500.0,0.00024931,2]
[332043613,1720942242880,-2416.2,0.00024931,2]
[332043615,1720942242891,-500.0,0.00024931,2]
[332043617,1720942242901,-500.0,0.00024931,2]
[332043619,1720942242911,-500.0,0.00024931,2]
[332043621,1720942242920,-500.0,0.00024931,2]
[332043623,1720942242930,-500.0,0.00024931,2]
[332043625,1720942242939,-500.0,0.00024931,2]
[332043626,1720942242949,-500.0,0.00024931,2]
[332043628,1720942242958,-734.3,0.00024931,2]
[332043630,1720942242969,-500.0,0.00024931,2]
[332043632,1720942242980,-500.0,0.00024931,2]
[332043635,1720942242990,-990.52,0.00024931,2]
[332043636,1720942242999,-255.38478691,0.00024931,2]
[332043638,1720942243013,-500.0,0.00024931,2]
[332043640,1720942243023,-1165.78,0.00024931,2]
[332043642,1720942243033,-500.0,0.00024931,2]
[332043645,1720942243043,-500.0,0.00024931,2]
[332043647,1720942243054,-500.0,0.00024931,2]
[332043649,1720942243065,-500.0,0.00024931,2]
[332043651,1720942243074,-500.0,0.00024931,2]
[332043653,1720942243086,-500.0,0.00024931,2]
[332043655,1720942243096,-237.9840879,0.00024931,2]
[332043657,1720942243106,-500.0,0.00024931,2]
[332043659,1720942243116,-500.0,0.00024931,2]
[332043661,1720942243126,-500.0,0.00024931,2]
[332043663,1720942243135,-500.0,0.00024931,2]
[332043665,1720942243145,-500.0,0.00024931,2]
[332043668,1720942243155,-500.0,0.00024931,2]
[332043670,1720942243165,-500.0,0.00024931,2]
[332043673,1720942243175,-500.0,0.00024931,2]
[332043676,1720942243185,-500.0,0.00024931,2]
[332043678,1720942243194,-500.0,0.00024931,2]
[332043680,1720942243204,-500.0,0.00024931,2]
[332043691,1720942243276,-518.60727048,0.00024931,2]
[332043693,1720942243293,-500.0,0.00024931,2]
[332043695,1720942243303,-632.82,0.00024931,2]
[332043697,1720942243313,-500.0,0.00024931,2]
[332043699,1720942243323,-500.0,0.00024931,2]
[332043701,1720942243334,-500.0,0.00024931,2]
[332043703,1720942243343,-500.0,0.00024931,2]
[332043705,1720942243353,-500.0,0.00024931,2]
[332043707,1720942243363,-500.0,0.00024931,2]
[332043709,1720942243373,-500.0,0.00024931,2]
[332043711,1720942243382,-500.0,0.00024931,2]
[332043713,1720942243392,-500.0,0.00024931,2]
[332043715,1720942243402,-500.0,0.00024931,2]
[332043717,1720942243412,-500.0,0.00024931,2]
[332043719,1720942243423,-4348.22616481,0.00024931,2]
[332043732,1720942243542,-1783.96,0.00024657,2]
[332043734,1720942243552,-10510.73383519,0.00024931,2]
[332043736,1720942243562,-500.0,0.00024931,2]
[332043738,1720942243571,-500.0,0.00024931,2]
[332043740,1720942243581,-500.0,0.00024931,2]
[332043742,1720942243592,-506.92586096,0.00024931,2]
[332043744,1720942243601,-500.0,0.00024931,2]
[332043746,1720942243611,-500.0,0.00024931,2]
[332043748,1720942243621,-500.0,0.00024931,2]
[332043750,1720942243631,-500.0,0.00024931,2]
[332043752,1720942243641,-500.0,0.00024931,2]
[332043754,1720942243650,-500.0,0.00024931,2]
[332043756,1720942243660,-500.0,0.00024931,2]
[332043758,1720942243669,-500.0,0.00024931,2]
[332043760,1720942243679,-500.0,0.00024931,2]
[332043762,1720942243688,-500.0,0.00024931,2]
[332043764,1720942243697,-500.0,0.00024931,2]
[332043766,1720942243707,-500.0,0.00024931,2]
[332043768,1720942243716,-500.0,0.00024931,2]
[332043770,1720942243726,-500.0,0.00024931,2]
[332043772,1720942243737,-500.0,0.00024931,2]
[332043774,1720942243747,-500.0,0.00024931,2]
[332043776,1720942243757,-573.13917614,0.00024931,2]
[332043778,1720942243766,-500.0,0.00024931,2]
[332043780,1720942243776,-500.0,0.00024931,2]
[332043782,1720942243785,-500.0,0.00024931,2]
[332043784,1720942243795,-500.0,0.00024931,2]
[332043786,1720942243805,-500.0,0.00024931,2]
[332043788,1720942243815,-500.0,0.00024931,2]
[332043790,1720942243824,-500.0,0.00024931,2]
[332043792,1720942243834,-593.05594876,0.00024931,2]
[332043794,1720942243844,-500.0,0.00024931,2]
[332043796,1720942243853,-507.27,0.00024931,2]
[332043798,1720942243863,-627.76,0.00024931,2]
[332043800,1720942243873,-500.0,0.00024931,2]
[332043802,1720942243882,-500.0,0.00024931,2]
[332043804,1720942243892,-1783.96,0.00024931,2]
[332043805,1720942243902,-2159.12381679,0.00024979,2]
[332043808,1720942243912,-189.7,0.00024985,2]
[332043809,1720942243922,-260.62534725,0.00025,2]
[332043811,1720942243931,-189.4315508,0.00025,2]
[332043813,1720942243940,-154.57491897,0.00025,2]
[332043815,1720942243950,-1853.17476112,0.00025,2]
[332043817,1720942243959,-2069.26603855,0.00025185,3]
[332043819,1720942243972,-2159.12381679,0.00025189,2]
[332043821,1720942243981,-4138.5320771,0.00025195,3]
[332043823,1720942243991,-4810.3332924,0.000252,2]
[332043825,1720942244001,-2001.92285393,0.000252,7]
[332043827,1720942244014,-7608.32615045,0.00025205,5]
[332043829,1720942244023,-500.0,0.00025205,2]
[332043831,1720942244033,-500.0,0.00025205,2]
[332043833,1720942244042,-500.0,0.00025205,2]
[332043835,1720942244053,-500.0,0.00025205,2]
[332043837,1720942244063,-500.0,0.00025205,2]
[332043839,1720942244072,-508.32860766,0.00025205,2]
[332043841,1720942244081,-1500.0,0.00025205,2]
[332043843,1720942244092,-500.0,0.00025205,2]
[332043845,1720942244102,-500.0,0.00025205,2]
[332043847,1720942244112,-500.0,0.00025205,2]
[332043849,1720942244122,-588.14194118,0.00025205,2]
[332043851,1720942244131,-502.0874754,0.00025205,2]
[332043853,1720942244141,-500.0,0.00025205,2]
[332043855,1720942244151,-500.0,0.00025205,2]
[332043857,1720942244160,-500.0,0.00025205,2]
[332043859,1720942244170,-619.11906096,0.00025205,2]
[332043861,1720942244179,-1581.73,0.00025205,2]
[332043863,1720942244188,-500.0,0.00025205,2]
[332043865,1720942244198,-200.0,0.00025205,2]
[332043866,1720942244207,-500.0,0.00025205,2]
[332043868,1720942244217,-500.0,0.00025205,2]
[332043870,1720942244227,-500.0,0.00025205,2]
[332043872,1720942244237,-500.0,0.00025205,2]
[332043874,1720942244246,-500.0,0.00025205,2]
[332043876,1720942244256,-682.55,0.00025205,2]
[332043878,1720942244265,-500.0,0.00025205,2]
[332043880,1720942244275,-500.0,0.00025205,2]
[332043882,1720942244285,-500.0,0.00025205,2]
[332043884,1720942244294,-500.0,0.00025205,2]
[332043886,1720942244303,-500.0,0.00025205,2]
[332043888,1720942244312,-500.0,0.00025205,2]
[332043890,1720942244322,-500.0,0.00025205,2]
[332043892,1720942244331,-500.0,0.00025205,2]
[332043894,1720942244342,-500.0,0.00025205,2]
[332043896,1720942244351,-500.0,0.00025205,2]
[332043898,1720942244361,-500.0,0.00025205,2]
[332043900,1720942244370,-500.0,0.00025205,2]
[332043902,1720942244379,-500.0,0.00025205,2]
[332043904,1720942244389,-500.0,0.00025205,2]
[332043906,1720942244399,-599.46,0.00025205,2]
[332043907,1720942244408,-500.0,0.00025205,2]
[332043909,1720942244417,-500.0,0.00025205,2]
[332043911,1720942244426,-500.0,0.00025205,2]
[332043913,1720942244435,-510.0678106,0.00025205,2]
[332043915,1720942244445,-500.0,0.00025205,2]
[332043916,1720942244454,-500.0,0.00025205,2]
[332043918,1720942244463,-963.72,0.00025205,2]
[332043920,1720942244474,-500.0,0.00025205,2]
[332043921,1720942244483,-500.0,0.00025205,2]
[332043922,1720942244492,-500.0,0.00025205,2]
[332043923,1720942244501,-500.0,0.00025205,2]
[332043924,1720942244510,-565.8,0.00025205,2]
[332043925,1720942244520,-500.0,0.00025205,2]
[332043926,1720942244530,-500.0,0.00025205,2]
[332043927,1720942244539,-500.0,0.00025205,2]
[332043928,1720942244548,-500.0,0.00025205,2]
[332043929,1720942244558,-500.0,0.00025205,2]
[332043930,1720942244567,-500.0,0.00025205,2]
[332043931,1720942244577,-500.0,0.00025205,2]
[332043932,1720942244587,-500.0,0.00025205,2]
[332043933,1720942244595,-500.0,0.00025205,2]
[332043934,1720942244605,-500.0,0.00025205,2]
[332043935,1720942244614,-500.0,0.00025205,2]
[332043936,1720942244624,-500.0,0.00025205,2]
[332043937,1720942244633,-500.0,0.00025205,2]
[332043938,1720942244642,-500.0,0.00025205,2]
[332043939,1720942244651,-500.0,0.00025205,2]
[332043940,1720942244660,-279.55542492,0.00025205,2]
[332043941,1720942244669,-500.0,0.00025205,2]
[332043943,1720942244678,-500.0,0.00025205,2]
[332043945,1720942244688,-500.0,0.00025205,2]
[332043947,1720942244697,-645.24,0.00025205,2]
[332043949,1720942244706,-500.0,0.00025205,2]
[332043951,1720942244716,-540.091805,0.00025205,2]
[332043953,1720942244728,-500.0,0.00025205,2]
[332043955,1720942244738,-500.0,0.00025205,2]
[332043957,1720942244748,-500.0,0.00025205,2]
[332043959,1720942244757,-500.0,0.00025205,2]
[332043961,1720942244767,-500.0,0.00025205,2]
[332043963,1720942244776,-500.0,0.00025205,2]
[332043965,1720942244786,-500.0,0.00025205,2]
[332043967,1720942244795,-500.0,0.00025205,2]
[332043969,1720942244804,-500.0,0.00025205,2]
[332043978,1720942244881,-500.0,0.00025205,2]
[332043980,1720942244891,-500.0,0.00025205,2]
[332043982,1720942244900,-500.0,0.00025205,2]
[332043984,1720942244909,-2416.2,0.00025205,2]
[332043986,1720942244919,-500.0,0.00025205,2]
[332043988,1720942244928,-500.0,0.00025205,2]
[332043990,1720942244937,-500.0,0.00025205,2]
[332043992,1720942244946,-500.0,0.00025205,2]
[332043994,1720942244956,-500.0,0.00025205,2]
[332043996,1720942244965,-500.0,0.00025205,2]
[332043998,1720942244976,-500.0,0.00025205,2]
[332044000,1720942244985,-734.3,0.00025205,2]
[332044002,1720942244994,-500.0,0.00025205,2]
[332044004,1720942245004,-500.0,0.00025205,2]
[332044006,1720942245017,-990.52,0.00025205,2]
[332044008,1720942245026,-500.0,0.00025205,2]
[332044010,1720942245035,-1165.78,0.00025205,2]
[332044012,1720942245046,-500.0,0.00025205,2]
[332044014,1720942245055,-500.0,0.00025205,2]
[332044016,1720942245065,-500.0,0.00025205,2]
[332044018,1720942245074,-500.0,0.00025205,2]
[332044020,1720942245085,-500.0,0.00025205,2]
[332044022,1720942245094,-500.0,0.00025205,2]
[332044024,1720942245104,-500.0,0.00025205,2]
[332044027,1720942245114,-500.0,0.00025205,2]
[332044029,1720942245124,-500.0,0.00025205,2]
[332044031,1720942245133,-500.0,0.00025205,2]
[332044032,1720942245143,-453.55026647,0.00025205,2]
[332044035,1720942245153,-218.41697337,0.00025205,2]
[332044036,1720942245162,-288.66648473,0.00025205,2]
[332044039,1720942245178,-126.08348834,0.00025205,2]
[332044041,1720942245187,-500.0,0.00025205,2]
[332044043,1720942245197,-500.0,0.00025205,2]
[332044045,1720942245206,-404.74848666,0.00025205,2]
[332044056,1720942245300,-275.966395,0.00024657,2]
[332044074,1720942245462,-224.033605,0.00024657,2]
[332044076,1720942245472,-500.0,0.00024657,2]
[332044078,1720942245481,-516.91087296,0.00024657,2]
[332044080,1720942245491,-150.0,0.00024757,2]
[332044082,1720942245501,-4409.05552204,0.0002479,3]
[332044085,1720942245512,-3623.21,0.0002479,3]
[332044241,1720942246694,-201.176517,0.00024106,2]
[332044243,1720942246704,-677.75023556,0.0002479,3]
[332044246,1720942246721,-811.81211323,0.0002479,3]
[332047693,1720942293316,4331.64342127,0.000199,30]
[332048350,1720942432162,4331.64342127,0.000199,30]
[332048369,1720942672175,4331.64342127,0.000199,30]
[332048394,1720943160583,383.44948237,0.00015,2]
[332048396,1720943237164,-155.02881855,0.00016255,2]
[332048397,1720943237185,-216.77370814,0.00018798,2]
[332048398,1720943241087,-42.26668917,0.00018798,2]
[332048399,1720943241108,-157.259426,0.00019213,2]
[332048400,1720943241129,-154.57491897,0.0002,2]
[332048401,1720943241151,-435.0,0.0002,2]
[332048402,1720943241172,-293.73911192,0.0002,2]
[332048403,1720943241194,-154.57491897,0.0002,2]
[332048404,1720943241216,-168.877123,0.00020002,2]
[332048405,1720943241239,-168.877123,0.00020118,2]
[332048406,1720943241262,-168.877123,0.00020234,2]
[332048407,1720943241283,-168.877123,0.0002035,2]
[332048408,1720943241304,-168.877123,0.00020465,2]
[332048409,1720943241327,-168.877123,0.00020581,2]
[332048410,1720943241349,-168.877123,0.00020697,2]
[332048411,1720943241370,-300.0,0.00020808,2]
[332048412,1720943241391,-565.02347996,0.00020809,2]
[332048413,1720943241518,-500.0,0.00020809,2]
[332048414,1720943241540,-501.24462753,0.00020809,2]
[332048415,1720943241561,-500.0,0.00020809,2]
[332048416,1720943241582,-173.29838459,0.00020809,2]
[332048417,1720943241611,-326.70161541,0.00020809,2]
[332048418,1720943241633,-602.9933626,0.00020809,2]
[332048419,1720943241654,-500.0,0.00020809,2]
[332048420,1720943241675,-500.0,0.00020809,2]
[332048421,1720943241696,-500.0,0.00020809,2]
[332048422,1720943241718,-500.0,0.00020809,2]
[332048423,1720943241739,-586.04762548,0.00020809,2]
[332048424,1720943241777,-11.77911625,0.00020809,2]
[332048425,1720943241798,-154.85883175,0.00020809,2]
[332048442,1720943348084,-352.05638924,0.00016255,2]
[332048443,1720943348108,-321.321201,0.00019898,2]
[332048444,1720943348129,-221.58134557,0.0002,2]
[332048445,1720943348151,-192.31936547,0.0002,2]
[332048446,1720943348173,-246.89210555,0.0002,2]
[332048447,1720943348203,-300.0,0.00020808,2]
[332048448,1720943348225,-345.14116825,0.00020809,2]
[332048449,1720943348245,-500.0,0.00020809,2]
[332048450,1720943348266,-500.0,0.00020809,2]
[332048451,1720943348287,-577.94148535,0.00020809,2]
[332048452,1720943348307,-500.0,0.00020809,2]
[332048453,1720943348327,-225.94652212,0.00020809,2]
[332048454,1720943348349,-6873.12150085,0.00020809,2]
[332048455,1720943348373,-3822.73499725,0.00020809,2]
[332048456,1720943348394,-764.58301536,0.00020809,2]
[332048457,1720943348416,-20833.53371507,0.0002081,2]
[332048458,1720943350664,166.207179,0.00016155,2]
[332048462,1720943364112,-225.94652212,0.00020809,2]
[332048463,1720943364136,-4066.46628493,0.0002081,2]
[332048464,1720943364161,-168.877123,0.00020813,2]
[332048465,1720943364182,-168.877123,0.00020929,2]
[332048466,1720943364202,-1308.67780636,0.00020995,2]
[332048467,1720943364222,-59.49578938,0.00021044,2]
[332048468,1720943369103,-109.38133362,0.00021044,2]
[332048469,1720943369124,-530.55439138,0.00021072,2]
[332048470,1720943394465,381.59933659,0.000189,2]
[332048471,1720943394488,529.03053143,0.000189,2]
[332048476,1720943432595,-300.0,0.00020808,2]
[332048477,1720943432605,-428.71334484,0.00020809,2]
[332048478,1720943432616,-1000.0,0.00020809,2]
[332048479,1720943432625,-289.26512793,0.00020809,2]
[332049074,1720943438706,-230.88238726,0.00020808,2]
[332049076,1720943438716,-289.22148473,0.00020808,2]
[332049078,1720943438726,-62026.30871731,0.00020809,2]
[332049080,1720943438736,-2469.44560862,0.00021072,2]
[332049082,1720943438745,-285.0,0.00021095,2]
[332049084,1720943438755,-405.756599,0.00021096,2]
[332049086,1720943438766,-711.089195,0.00021096,2]
[332049088,1720943438776,-162.046243,0.00021415,2]
[332049090,1720943438786,-1113.06032485,0.00021917,2]
[332049092,1720943438796,-1177.03333163,0.00021917,2]
[332049094,1720943438806,-166.666666,0.00021918,2]
[332049096,1720943438816,-166.666666,0.00022478,2]
[332049098,1720943438825,-420.0,0.00022889,2]
[332049100,1720943438837,-166.666666,0.00023038,2]
[332049102,1720943438847,-166.666666,0.00023598,2]
[332049104,1720943438856,-910.62986802,0.000239,2]
[332049107,1720943438867,-486.12101065,0.00024024,2]
[332049109,1720943438876,-154.55950541,0.00024121,2]
[332049111,1720943438887,-239.3579425,0.00024121,2]
[332049113,1720943438897,-166.666666,0.00024158,2]
[332049115,1720943438907,-162.8,0.00024501,2]
[332049117,1720943438916,-1133.45098722,0.00024557,2]
[332049119,1720943438927,-4923.41801347,0.00024573,2]
[332049121,1720943438936,-153.0,0.00024575,2]
[332049123,1720943438946,-153.0,0.00024575,2]
[332049125,1720943438956,-153.0,0.00024575,2]
[332049127,1720943438966,-400.14243221,0.00024646,2]
[332049129,1720943438975,-500.0,0.00024646,2]
[332049131,1720943438985,-500.0,0.00024646,2]
[332049133,1720943438995,-500.0,0.00024646,2]
[332049135,1720943439004,-417.32674163,0.00024646,2]
[332049137,1720943439013,-153.91518692,0.00024646,2]
[332049139,1720943439023,-500.0,0.00024646,2]
[332049141,1720943439032,-36368.7738662,0.00024647,3]
[332049142,1720943439041,-673.07,0.00024657,2]
[332049144,1720943439050,-500.0,0.00024657,2]
[332049146,1720943439060,-500.0,0.00024657,2]
[332049148,1720943439069,-372.52510944,0.00024657,2]
[332049150,1720943439079,-513.82795581,0.00024657,2]
[332049152,1720943439089,-500.0,0.00024657,2]
[332049154,1720943439099,-202.11625715,0.00024657,7]
[332049156,1720943439108,-500.0,0.00024657,2]
[332049158,1720943439118,-500.0,0.00024657,2]
[332049160,1720943439127,-631.67216182,0.00024657,2]
[332049162,1720943439136,-500.0,0.00024657,2]
[332049164,1720943439146,-488.77528316,0.00024657,2]
[332049166,1720943439156,-500.0,0.00024657,2]
[332049168,1720943439166,-500.0,0.00024657,2]
[332049170,1720943439176,-500.0,0.00024657,2]
[332049172,1720943439186,-500.0,0.00024657,2]
[332049174,1720943439196,-500.0,0.00024657,2]
[332049176,1720943439205,-500.0,0.00024657,2]
[332049178,1720943439215,-500.0,0.00024657,2]
[332049180,1720943439224,-500.0,0.00024657,2]
[332049182,1720943439234,-896.8,0.00024657,2]
[332049184,1720943439244,-500.0,0.00024657,2]
[332049186,1720943439253,-184.52936008,0.00024657,2]
[332049187,1720943439263,-500.0,0.00024657,2]
[332049189,1720943439272,-279.3196256,0.00024657,2]
[332049191,1720943439281,-500.0,0.00024657,2]
[332049193,1720943439290,-500.0,0.00024657,2]
[332049195,1720943439299,-500.0,0.00024657,2]
[332049197,1720943439309,-500.0,0.00024657,2]
[332049199,1720943439318,-500.0,0.00024657,2]
[332049201,1720943439327,-500.0,0.00024657,2]
[332049202,1720943439337,-500.0,0.00024657,2]
[332049203,1720943439346,-500.0,0.00024657,2]
[332049204,1720943439356,-328.42450067,0.00024657,2]
[332049205,1720943439365,-500.0,0.00024657,2]
[332049206,1720943439374,-500.0,0.00024657,2]
[332049207,1720943439383,-500.0,0.00024657,2]
[332049208,1720943439398,-500.0,0.00024657,2]
[332049209,1720943439407,-500.0,0.00024657,2]
[332049210,1720943439416,-500.0,0.00024657,2]
[332049211,1720943439427,-500.0,0.00024657,2]
[332049212,1720943439438,-500.0,0.00024657,2]
[332049213,1720943439447,-500.0,0.00024657,2]
[332049214,1720943439457,-500.0,0.00024657,2]
[332049215,1720943439469,-500.0,0.00024657,2]
[332049216,1720943439478,-524.26529547,0.00024657,2]
[332049217,1720943439488,-500.0,0.00024657,2]
[332049218,1720943439497,-500.0,0.00024657,2]
[332049219,1720943439507,-500.0,0.00024657,2]
[332049220,1720943439516,-500.0,0.00024657,2]
[332049221,1720943439525,-500.0,0.00024657,2]
[332049222,1720943439534,-500.0,0.00024657,2]
[332049224,1720943439543,-502.8678294,0.00024657,2]
[332049226,1720943439552,-500.0,0.00024657,2]
[332049228,1720943439562,-500.0,0.00024657,2]
[332049230,1720943439571,-500.0,0.00024657,2]
[332049232,1720943439580,-500.0,0.00024657,2]
[332049234,1720943439591,-500.0,0.00024657,2]
[332049236,1720943439603,-500.0,0.00024657,2]
[332049238,1720943439613,-500.0,0.00024657,2]
[332049240,1720943439623,-506.45729365,0.00024657,2]
[332049242,1720943439632,-500.0,0.00024657,2]
[332049244,1720943439641,-500.0,0.00024657,2]
[332049246,1720943439651,-525.86543325,0.00024657,2]
[332049248,1720943439660,-500.0,0.00024657,2]
[332049250,1720943439669,-500.0,0.00024657,2]
[332049252,1720943439679,-500.0,0.00024657,2]
[332049254,1720943439690,-508.39784906,0.00024657,2]
[332049256,1720943439701,-500.0,0.00024657,2]
[332049258,1720943439713,-500.0,0.00024657,2]
[332049260,1720943439723,-500.0,0.00024657,2]
[332049263,1720943439734,-500.0,0.00024657,2]
[332049265,1720943439743,-500.0,0.00024657,2]
[332049267,1720943439754,-500.0,0.00024657,2]
[332049269,1720943439766,-500.0,0.00024657,2]
[332049271,1720943439775,-500.0,0.00024657,2]
[332049283,1720943439878,-500.0,0.00024657,2]
[332049285,1720943439887,-500.0,0.00024657,2]
[332049287,1720943439897,-500.0,0.00024657,2]
[332049289,1720943439907,-500.0,0.00024657,2]
[332049291,1720943439917,-500.0,0.00024657,2]
[332049293,1720943439928,-500.0,0.00024657,2]
[332049295,1720943439939,-500.0,0.00024657,2]
[332049297,1720943439950,-500.0,0.00024657,2]
[332049299,1720943439961,-500.0,0.00024657,2]
[332049301,1720943439971,-1364.24,0.00024657,4]
[332049303,1720943439981,-500.0,0.00024657,2]
[332049305,1720943439990,-500.0,0.00024657,2]
[332049307,1720943440000,-500.0,0.00024657,2]
[332049308,1720943440010,-305.02786816,0.00024657,2]
[332049310,1720943440019,-364.16210115,0.00024657,2]
[332049312,1720943440028,-500.0,0.00024657,2]
[332049314,1720943440037,-500.0,0.00024657,2]
[332049316,1720943440047,-500.0,0.00024657,2]
[332049318,1720943440056,-500.0,0.00024657,2]
[332049320,1720943440066,-500.0,0.00024657,2]
[332049323,1720943440075,-500.0,0.00024657,2]
[332049324,1720943440085,-500.0,0.00024657,2]
[332049327,1720943440095,-500.0,0.00024657,2]
[332049330,1720943440106,-500.0,0.00024657,2]